fUST/lending_fUST_20251014
["ID","MTS","AMOUNT","RATE_DAILY","PERIOD"]
[391205832,1760417661096,2599.53167151,0.00019708,2]
[391205833,1760417663107,500.0,0.00019708,2]
[391205834,1760417663317,500.0,0.00019708,2]
[391205835,1760417663580,505.53315587,0.00019708,2]
[391205836,1760417664385,500.0,0.00019708,2]
[391205837,1760417664619,500.0,0.00019708,2]
[391205838,1760417666361,500.0,0.00019708,2]
[391205839,1760417666640,500.0,0.00019708,2]
[391205840,1760417666890,500.0,0.00019708,2]
[391205841,1760417667142,500.0,0.00019708,2]
[391205842,1760417667373,500.0,0.00019708,2]
[391205843,1760417667608,533.67,0.00019708,2]
[391205844,1760417669570,500.0,0.00019708,2]
[391205845,1760417669826,500.0,0.00019708,2]
[391205846,1760417670077,500.0,0.00019708,2]
[391205847,1760417670307,500.0,0.00019708,2]
[391205848,1760417670550,500.0,0.00019708,2]
[391205849,1760417670815,500.0,0.00019708,2]
[391205850,1760417671040,500.0,0.00019708,2]
[391205851,1760417671303,266.22819767,0.00019708,2]
[391205852,1760417673164,500.0,0.00019708,2]
[391205853,1760417673357,194.57864646,0.00019708,2]
[391205854,1760417673381,305.42135354,0.00019708,2]
[391205855,1760417673614,500.0,0.00019708,2]
[391205856,1760417673874,500.0,0.00019708,2]
[391205857,1760417675624,294.42014221,0.00019708,2]
[391205858,1760417675694,500.0,0.00019708,2]
[391205859,1760417675771,300.0,0.00019708,2]
[391205860,1760417675873,216.86040173,0.00019708,2]
[391205861,1760417675932,500.0,0.00019708,2]
[391205862,1760417676115,500.0,0.00019708,2]
[391205863,1760417676169,640.9362637,0.00019708,2]
[391205864,1760417676198,194.66068688,0.00019708,2]
[391205865,1760417681922,500.0,0.00019708,2]
[391205866,1760417682131,500.0,0.00019708,2]
[391205867,1760417688218,500.0,0.00019708,2]
[391205868,1760417688474,500.0,0.00019708,2]
[391205869,1760417688760,500.0,0.00019708,2]
[391205870,1760417689017,500.0,0.00019708,2]
[391205871,1760417689254,500.0,0.00019708,2]
[391205872,1760417689509,364.25331242,0.00019708,2]
[391205873,1760417690378,64892.66521043,0.00030625,60]
[391205874,1760417692671,2488.87919306,0.00019709,2]
[391205875,1760417692694,2511.12080694,0.00019709,2]
[391205876,1760417702904,300.0,0.00019708,2]
[391205877,1760417705129,522.17,0.00019625,2]
[391205878,1760417712061,167.17540248,0.0001961,2]
[391205879,1760417715137,5000.0,0.00019709,2]
[391205881,1760417723283,1119.627096,0.00013699,2]
[391205885,1760417752718,379.91669458,0.00019708,2]
[391205886,1760417752752,120.08330542,0.00019708,2]
[391205887,1760417752974,500.0,0.00019708,2]
[391205888,1760417753251,500.0,0.00019708,2]
[391205889,1760417754714,500.0,0.00019708,2]
[391205890,1760417756869,500.0,0.00019708,2]
[391205891,1760417757040,500.0,0.00019708,2]
[391205892,1760417757363,305.27250568,0.00019708,2]
[391205893,1760417762924,300.0,0.00019708,2]
[391205894,1760417765634,13275.71574385,0.00030625,120]
[391205895,1760417767505,500.0,0.00019708,2]
[391205896,1760417767728,507.28090977,0.00019708,2]
[391205897,1760417782241,500.0,0.00019708,2]
[391205898,1760417787702,500.0,0.00019708,2]
[391205899,1760417788096,500.0,0.00019708,2]
[391205900,1760417788293,500.0,0.00019708,2]
[391205901,1760417790070,500.0,0.00019708,2]
[391205902,1760417790302,500.0,0.00019708,2]
[391205903,1760417790540,500.0,0.00019708,2]
[391205904,1760417790803,500.0,0.00019708,2]
[391205905,1760417791060,500.0,0.00019708,2]
[391205906,1760417791321,500.0,0.00019708,2]
[391205907,1760417791586,427.36,0.00019708,2]
[391205908,1760417802251,340.01327913,0.00019709,2]
[391205909,1760417802275,4655.79672087,0.00019709,2]
[391205910,1760417803173,525.48214862,0.00019708,2]
[391205911,1760417806834,4818.73113051,0.00019709,2]
[391205912,1760417806858,181.26886949,0.00019709,2]
[391205913,1760417809271,500.0,0.00019708,2]
[391205914,1760417809496,500.0,0.00019708,2]
[391205915,1760417809720,500.0,0.00019708,2]
[391205916,1760417809952,500.0,0.00019708,2]
[391205917,1760417810215,500.0,0.00019708,2]
[391205918,1760417810490,500.0,0.00019708,2]
[391205919,1760417810671,2208.2283846,0.00019709,2]
[391205920,1760417810715,500.0,0.00019708,2]
[391205921,1760417810822,500.0,0.00019708,2]
[391205922,1760417810938,500.0,0.00019708,2]
[391205923,1760417811048,500.0,0.00019708,2]
[391205924,1760417811165,500.0,0.00019708,2]
[391205925,1760417811300,500.0,0.00019708,2]
[391205926,1760417811400,500.0,0.00019708,2]
[391205927,1760417811532,500.0,0.00019708,2]
[391205928,1760417811633,500.0,0.00019708,2]
[391205929,1760417811785,291.7816154,0.00019708,2]
[391205930,1760417811811,208.2183846,0.00019708,2]
[391205931,1760417811873,500.0,0.00019708,2]
[391205932,1760417812212,500.0,0.00019708,2]
[391205933,1760417812243,500.0,0.00019708,2]
[391205934,1760417812328,208.95015509,0.00019708,2]
[391205935,1760417812481,500.0,0.00019708,2]
[391205936,1760417812723,500.0,0.00019708,2]
[391205937,1760417812969,500.0,0.00019708,2]
[391205938,1760417813216,500.0,0.00019708,2]
[391205939,1760417813367,-232.52369079,0.00019709,2]
[391205940,1760417813566,500.0,0.00019708,2]
[391205941,1760417813845,500.0,0.00019708,2]
[391205942,1760417814175,500.0,0.00019708,2]
[391205943,1760417814244,242.54,0.00019708,2]
[391205944,1760417814623,500.0,0.00019708,2]
[391205945,1760417814993,500.0,0.00019708,2]
[391205946,1760417815195,511.41750764,0.00019708,2]
[391205947,1760417819403,-164.67,0.00019709,2]
[391205948,1760417820021,-734.46,0.00019708,2]
[391205949,1760417820378,-734.46,0.00019708,2]
[391205950,1760417820388,-4474.59023968,0.00019709,2]
[391205951,1760417820419,-10000.01,0.00019709,2]
[391205952,1760417820460,-10000.01,0.00019709,2]
[391205953,1760417820623,-734.46,0.00019708,2]
[391205954,1760417820667,-8531.09,0.00019709,2]
[391205955,1760417823559,-734.46,0.00019708,2]
[391205956,1760417823591,-734.46,0.00019708,2]
[391205957,1760417823622,-734.46,0.00019708,2]
[391205958,1760417823653,-734.46,0.00019708,2]
[391205959,1760417823684,-734.46,0.00019708,2]
[391205960,1760417823716,-734.46,0.00019708,2]
[391205961,1760417823749,-300.0,0.00019708,2]
[391205962,1760417823886,-734.46,0.00019708,2]
[391205963,1760417823918,-734.46,0.00019708,2]
[391205964,1760417823953,-734.46,0.00019708,2]
[391205965,1760417824070,-586.49,0.00019709,2]
[391205966,1760417824086,-5593.25,0.00019709,2]
[391205967,1760417824114,-10000.01,0.00019709,2]
[391205968,1760417824130,-10000.01,0.00019709,2]
[391205969,1760417824188,-10000.01,0.00019709,2]
[391205970,1760417824308,-10000.01,0.00019709,2]
[391205971,1760417832056,-301.98336281,0.00019511,2]
[391205972,1760417833666,-1045.69756521,0.00019511,2]
[391205973,1760417833874,151.0,0.00017999,2]
[391205974,1760417835617,301.98336284,0.00019511,2]
[391205975,1760417843502,4835.33,0.00019511,2]
[391205976,1760417851628,-318.41071998,0.00019708,2]
[391205977,1760417851659,-500.0,0.00019708,2]
[391205978,1760417851689,-500.0,0.00019708,2]
[391205979,1760417851723,-734.46,0.00019708,2]
[391205980,1760417851752,-734.46,0.00019708,2]
[391205981,1760417851784,-734.46,0.00019708,2]
[391205982,1760417851814,-734.46,0.00019708,2]
[391205983,1760417851845,-734.46,0.00019708,2]
[391205984,1760417851986,-734.46,0.00019708,2]
[391205985,1760417852017,-734.46,0.00019708,2]
[391205986,1760417852048,-500.0,0.00019708,2]
[391205987,1760417852082,-734.46,0.00019708,2]
[391205988,1760417852113,-500.0,0.00019708,2]
[391205989,1760417852143,-500.0,0.00019708,2]
[391205990,1760417852176,-734.46,0.00019708,2]
[391205991,1760417852208,-500.0,0.00019708,2]
[391205992,1760417852492,2620.30150674,0.00019511,2]
[391205993,1760417852516,2379.69849326,0.00019511,2]
[391205994,1760417852550,-734.46,0.00019708,2]
[391205995,1760417852580,-500.0,0.00019708,2]
[391205996,1760417852612,-734.46,0.00019708,2]
[391205997,1760417852642,-500.0,0.00019708,2]
[391205998,1760417852672,-734.5416154,0.00019708,2]
[391205999,1760417852701,-504.23907198,0.00019708,2]
[391206000,1760417852739,-1289.72,0.00019708,2]
[391206001,1760417852868,-1289.72,0.00019708,2]
[391206002,1760417852898,-1289.72,0.00019708,2]
[391206003,1760417852929,-1289.72,0.00019708,2]
[391206004,1760417852962,-971.97,0.00019708,2]
[391206005,1760417853007,-317.75,0.00019708,2]
[391206006,1760417853038,-1289.72,0.00019708,2]
[391206007,1760417853069,-1289.72,0.00019708,2]
[391206008,1760417853100,-1289.72,0.00019708,2]
[391206009,1760417853133,-336.47,0.00019708,2]
[391206010,1760417853181,-953.25,0.00019708,2]
[391206011,1760417853214,-1289.72,0.00019708,2]
[391206012,1760417853246,-1289.72,0.00019708,2]
[391206013,1760417853279,-1289.72,0.00019708,2]
[391206014,1760417853486,-1289.72,0.00019708,2]
[391206015,1760417853518,-1289.72,0.00019708,2]
[391206016,1760417853550,-1289.72,0.00019708,2]
[391206017,1760417853581,-971.97,0.00019708,2]
[391206018,1760417853744,-317.75,0.00019708,2]
[391206019,1760417853781,-1289.72,0.00019708,2]
[391206020,1760417853816,-1289.72,0.00019708,2]
[391206021,1760417853852,-1289.72,0.00019708,2]
[391206022,1760417853887,-336.47,0.00019708,2]
[391206023,1760417854230,-953.25,0.00019708,2]
[391206024,1760417854270,-1289.72,0.00019708,2]
[391206025,1760417854310,-1289.72,0.00019708,2]
[391206026,1760417854351,-1289.72,0.00019708,2]
[391206027,1760417854498,-1289.72433068,0.00019708,2]
[391206028,1760417854530,-500.0,0.00019708,2]
[391206029,1760417854561,-500.0,0.00019708,2]
[391206030,1760417854592,-500.0,0.00019708,2]
[391206031,1760417854623,-504.05134616,0.00019708,2]
[391206032,1760417854655,-500.0,0.00019708,2]
[391206033,1760417854684,-497.33740702,0.00019708,2]
[391206034,1760417855085,500.0,0.00019708,2]
[391206035,1760417855251,500.0,0.00019708,2]
[391206036,1760417855399,417.78383228,0.00019708,2]
[391206037,1760417855710,-82.21616772,0.00019708,2]
[391206038,1760417855739,-626.79302433,0.00019708,2]
[391206039,1760417867652,515.52,0.00019614,2]
[391206040,1760417874712,3652.31907198,0.00019709,2]
[391206041,1760417877645,500.0,0.00019708,2]
[391206042,1760417877906,500.0,0.00019708,2]
[391206043,1760417878142,500.0,0.00019708,2]
[391206044,1760417878396,500.0,0.00019708,2]
[391206045,1760417878626,500.0,0.00019708,2]
[391206046,1760417878878,500.0,0.00019708,2]
[391206047,1760417879115,500.0,0.00019708,2]
[391206048,1760417879358,500.0,0.00019708,2]
[391206049,1760417879618,500.0,0.00019708,2]
[391206050,1760417880030,500.0,0.00019708,2]
[391206051,1760417883160,300.0,0.00019708,2]
[391206052,1760417883859,491.38101919,0.00019708,2]
[391206053,1760417884152,500.0,0.00019708,2]
[391206054,1760417884354,500.0,0.00019708,2]
[391206055,1760417884590,500.0,0.00019708,2]
[391206056,1760417884844,500.0,0.00019708,2]
[391206057,1760417885085,500.0,0.00019708,2]
[391206058,1760417885343,500.0,0.00019708,2]
[391206059,1760417885600,500.0,0.00019708,2]
[391206060,1760417885856,500.0,0.00019708,2]
[391206061,1760417886105,500.0,0.00019708,2]
[391206062,1760417886333,500.0,0.00019708,2]
[391206063,1760417886555,500.0,0.00019708,2]
[391206064,1760417886785,500.0,0.00019708,2]
[391206065,1760417887107,500.0,0.00019708,2]
[391206066,1760417889586,500.0,0.00019708,2]
[391206067,1760417889830,500.0,0.00019708,2]
[391206068,1760417890000,500.0,0.00019708,2]
[391206069,1760417890069,500.0,0.00019708,2]
[391206070,1760417890281,-3277.34470179,0.00019709,2]
[391206071,1760417890323,500.0,0.00019708,2]
[391206072,1760417890495,208.62898081,0.00019708,2]
[391206073,1760417890519,296.03101919,0.00019708,2]
[391206074,1760417890564,399.30690851,0.00019708,2]
[391206075,1760417892193,-8596.04309149,0.00019709,2]
[391206076,1760417894164,-10000.01,0.00019709,2]
[391206077,1760417897380,500.0,0.00019709,2]
[391206078,1760417900612,482.65147374,0.00019708,2]
[391206079,1760417901615,500.0,0.00019708,2]
[391206080,1760417901646,500.0,0.00019708,2]
[391206081,1760417901676,500.0,0.00019708,2]
[391206082,1760417901703,500.0,0.00019708,2]
[391206083,1760417901732,282.42142845,0.00019708,2]
[391206084,1760417901762,621.20698212,0.00019708,2]
[391206085,1760417901790,500.0,0.00019708,2]
[391206086,1760417901819,500.0,0.00019708,2]
[391206087,1760417901847,500.0,0.00019708,2]
[391206088,1760417901874,500.0,0.00019708,2]
[391206089,1760417901912,500.0,0.00019708,2]
[391206090,1760417901942,500.0,0.00019708,2]
[391206091,1760417901974,500.0,0.00019708,2]
[391206092,1760417902005,500.0,0.00019708,2]
[391206093,1760417902033,321.18750769,0.00019708,2]
[391206094,1760417902062,500.0,0.00019708,2]
[391206095,1760417902101,500.0,0.00019708,2]
[391206096,1760417902134,97.2046803,0.00019708,2]
[391206097,1760417902160,402.7953197,0.00019708,2]
[391206098,1760417902190,500.0,0.00019708,2]
[391206099,1760417902316,500.0,0.00019708,2]
[391206100,1760417904482,174.40106421,0.0001961,2]
[391206101,1760417905253,1717.77158439,0.00019709,2]
[391206102,1760417907040,500.0,0.00019708,2]
[391206103,1760417907089,500.0,0.00019708,2]
[391206104,1760417907158,426.85931804,0.00019708,2]
[391206105,1760417909764,500.0,0.00019708,2]
[391206106,1760417910020,500.0,0.00019708,2]
[391206107,1760417910266,500.0,0.00019708,2]
[391206108,1760417910569,500.0,0.00019708,2]
[391206109,1760417910809,500.0,0.00019708,2]
[391206110,1760417911078,500.0,0.00019708,2]
[391206111,1760417913141,2278.18271366,0.00019709,2]
[391206112,1760417913171,921.81728634,0.00019709,2]
[391206113,1760417915997,500.0,0.00019708,2]
[391206114,1760417916252,500.0,0.00019708,2]
[391206115,1760417916510,500.0,0.00019708,2]
[391206116,1760417916736,500.0,0.00019708,2]
[391206117,1760417916980,500.0,0.00019708,2]
[391206118,1760417917300,500.0,0.00019708,2]
[391206119,1760417919382,500.0,0.00019708,2]
[391206120,1760417919612,500.0,0.00019708,2]
[391206121,1760417919859,500.0,0.00019708,2]
[391206122,1760417921991,2896.09275332,0.00019709,2]
[391206123,1760417922670,-2377.43788804,0.00019709,2]
[391206124,1760417922700,-10000.01,0.00019709,2]
[391206125,1760417922825,-10000.01,0.00019709,2]
[391206126,1760417922977,-10000.01,0.00019709,2]
[391206127,1760417923142,-10000.01,0.00019709,2]
[391206128,1760417923266,-10000.01,0.00019709,2]
[391206129,1760417923394,-10000.01,0.00019709,2]
[391206130,1760417923523,-10000.01,0.00019709,2]
[391206131,1760417926463,-2020.72375764,0.00019709,2]
[391206132,1760417926498,-500.0,0.0001971,2]
[391206133,1760417926535,-500.0,0.0001971,2]
[391206134,1760417926570,-500.0,0.0001971,2]
[391206135,1760417926604,-502.37268043,0.0001971,2]
[391206136,1760417926635,-500.0,0.0001971,2]
[391206137,1760417926667,-453.81712386,0.0001971,2]
[391206138,1760417926772,-46.18287614,0.0001971,2]
[391206139,1760417926805,-501.35374469,0.0001971,2]
[391206140,1760417926836,-500.71369986,0.0001971,2]
[391206141,1760417926867,-500.0,0.0001971,2]
[391206142,1760417926900,-500.0,0.0001971,2]
[391206143,1760417926932,-440.85,0.0001971,2]
[391206144,1760417926964,-210.40270723,0.0001971,2]
[391206145,1760417926996,-500.0,0.0001971,2]
[391206146,1760417927028,-500.0,0.0001971,2]
[391206147,1760417927061,-505.74786077,0.0001971,2]
[391206148,1760417927097,-500.0,0.0001971,2]
[391206149,1760417927131,-89.50822262,0.0001971,2]
[391206150,1760417927229,-410.49177738,0.0001971,2]
[391206151,1760417927263,-500.0,0.0001971,2]
[391206152,1760417930017,5000.0,0.0001971,2]
[391206153,1760417936641,-502.47146237,0.00019809,2]
[391206154,1760417937793,5000.0,0.0001971,2]
[391206155,1760417941518,500.0,0.00019708,2]
[391206156,1760417941764,500.0,0.00019708,2]
[391206157,1760417942026,500.0,0.00019708,2]
[391206158,1760417942304,500.0,0.00019708,2]
[391206159,1760417942528,500.0,0.00019708,2]
[391206160,1760417942765,500.0,0.00019708,2]
[391206161,1760417943034,500.0,0.00019708,2]
[391206162,1760417943311,495.06707526,0.00019708,2]
[391206163,1760417943343,4.93292474,0.00019708,2]
[391206164,1760417943572,500.0,0.00019708,2]
[391206165,1760417943816,425.03172827,0.00019708,2]
[391206166,1760417945739,1694.53,0.00019708,2]
[391206167,1760417945779,5000.0,0.00019809,2]
[391206168,1760417945992,1694.53,0.00019708,2]
[391206169,1760417946231,680.98534699,0.00019708,2]
[391206170,1760417946256,1013.54465301,0.00019708,2]
[391206171,1760417946469,1694.53,0.00019708,2]
[391206172,1760417946770,1694.53,0.00019708,2]
[391206173,1760417946982,1694.53,0.00019708,2]
[391206174,1760417947232,1694.53,0.00019708,2]
[391206175,1760417947494,1694.53,0.00019708,2]
[391206176,1760417947730,513.81534699,0.00019708,2]
[391206177,1760417947756,1180.71465301,0.00019708,2]
[391206178,1760417947810,536.32,0.00019548,2]
[391206179,1760417948004,1694.53,0.00019708,2]
[391206180,1760417948249,1694.53,0.00019708,2]
[391206181,1760417948541,1694.53,0.00019708,2]
[391206182,1760417948803,1694.53,0.00019708,2]
[391206183,1760417949212,1504.85534699,0.00019708,2]
[391206184,1760417949241,189.67465301,0.00019708,2]
[391206185,1760417949454,1694.53,0.00019708,2]
[391206186,1760417950041,1694.53,0.00019708,2]
[391206187,1760417950290,1694.53,0.00019708,2]
[391206188,1760417950526,1694.53,0.00019708,2]
[391206189,1760417950792,1694.53,0.00019708,2]
[391206190,1760417951074,1337.68534699,0.00019708,2]
[391206191,1760417951102,356.84465301,0.00019708,2]
[391206192,1760417951348,1694.53,0.00019708,2]
[391206193,1760417951586,1694.53,0.00019708,2]
[391206194,1760417951819,1694.53,0.00019708,2]
[391206195,1760417952062,1694.58383209,0.00019708,2]
[391206198,1760418145905,5000.0,0.00019315,2]
[391206199,1760418155104,5000.0,0.00019315,2]
[391206200,1760418163431,0.01,0.00019315,2]
[391206201,1760418171852,5000.0,0.00019315,2]
[391206202,1760418179927,5000.0,0.00019315,2]
[391206203,1760418195188,5000.0,0.00019,2]
[391206204,1760418203136,5000.0,0.00019,2]
[391206205,1760418218082,5000.0,0.00019,2]
[391206206,1760418226365,5000.0,0.00019,2]
[391206207,1760418241381,2216.84713507,0.00019,2]
[391206208,1760418249311,5000.0,0.00019,2]
[391206209,1760418272648,5000.0,0.00019,2]
[391206210,1760418295463,5000.0,0.00019,2]
[391206211,1760418317674,5000.0,0.00019,2]
[391206212,1760418340350,5000.0,0.00019,2]
[391206213,1760418348539,5000.0,0.00019,2]
[391206214,1760418364582,1799.99999997,0.00019,2]
[391206215,1760418372511,5000.0,0.00019,2]
[391206216,1760418395750,5000.0,0.00019,2]
[391206217,1760418418092,5000.0,0.00019,2]
[391206218,1760418440837,5000.0,0.00019,2]
[391206219,1760418441969,3381.7196259,0.00018591,2]
[391206220,1760418454085,285.0,0.00030549,120]
[391206221,1760418463334,1603.89724668,0.00019,2]
[391206222,1760418515499,305.73022236,0.00019,2]
[391206223,1760418552055,-200.0,0.00019315,2]
[391206224,1760418552080,-66.41444673,0.00019315,2]
[391206225,1760418553584,-83.58555327,0.00019315,2]
[391206226,1760418553608,-172.91899234,0.00019315,2]
[391206227,1760418556000,-50.40295327,0.00019315,2]
[391206228,1760418556024,-159.86764219,0.00019508,2]
[391206229,1760418556047,-28.1175578,0.0001951,2]
[391206328,1760418638403,-205.35459041,0.00019508,2]
[391206330,1760418638413,-162.78,0.00019599,3]
[391206332,1760418638422,-488.38,0.00019599,3]
[391206333,1760418638431,-300.0,0.00019606,2]
[391206335,1760418638442,-300.0,0.00019606,2]
[391206337,1760418638451,-300.0,0.00019606,2]
[391206338,1760418638461,-464.16028228,0.00019606,2]
[391206339,1760418638472,-735.83971772,0.00019606,2]
[391206340,1760418638482,-371.83721488,0.00019607,2]
[391206398,1760418646701,-828.16278512,0.00019607,2]
[391206400,1760418646711,-500.0,0.00019607,2]
[391206401,1760418646720,-500.0,0.00019607,2]
[391206402,1760418646729,-500.0,0.00019607,2]
[391206403,1760418646738,-500.0,0.00019607,2]
[391206404,1760418646748,-500.0,0.00019607,2]
[391206405,1760418646757,-500.0,0.00019607,2]
[391206406,1760418646766,-105.90721488,0.00019607,2]
[391206408,1760418958096,-461.0,0.00019606,2]
[391206409,1760418958128,-300.0,0.00019606,2]
[391206410,1760418958160,-1200.0,0.00019606,2]
[391206411,1760418962822,300.0,0.00019606,2]
[391206412,1760418974277,-500.0,0.00019607,2]
[391206413,1760418974309,-501.75501672,0.00019607,2]
[391206414,1760418974340,-500.0,0.00019607,2]
[391206415,1760418974372,-500.0,0.00019607,2]
[391206416,1760418974403,-500.0,0.00019607,2]
[391206417,1760418974434,-403.04,0.00019607,2]
[391206418,1760418974467,-500.0,0.00019607,2]
[391206419,1760418974499,-500.0,0.00019607,2]
[391206420,1760418974529,-500.0,0.00019607,2]
[391206421,1760418974559,-500.0,0.00019607,2]
[391206422,1760418974733,-500.0,0.00019607,2]
[391206423,1760418974765,-500.0,0.00019607,2]
[391206424,1760418974798,-500.0,0.00019607,2]
[391206425,1760418974830,-500.0,0.00019607,2]
[391206426,1760418974861,-500.0,0.00019607,2]
[391206427,1760418974893,-500.0,0.00019607,2]
[391206428,1760418974924,-500.0,0.00019607,2]
[391206429,1760418974956,-210.35278512,0.00019607,2]
[391206430,1760418974989,-572.5431874,0.00019607,2]
[391206431,1760418975021,-500.0,0.00019607,2]
[391206432,1760418975186,-500.0,0.00019607,2]
[391206433,1760418975220,-500.0,0.00019607,2]
[391206434,1760418975251,-501.11,0.00019607,2]
[391206435,1760418975285,-500.0,0.00019607,2]
[391206436,1760418975319,-291.06,0.00019607,2]
[391206437,1760418975352,-500.0,0.00019607,2]
[391206438,1760418975385,-500.0,0.00019607,2]
[391206439,1760418975416,-500.0,0.00019607,2]
[391206440,1760418975448,-500.0,0.00019607,2]
[391206441,1760418975481,-500.0,0.00019607,2]
[391206442,1760418976387,-500.89086401,0.00019607,2]
[391206443,1760418976425,-500.0,0.00019607,2]
[391206444,1760418976464,-500.0,0.00019607,2]
[391206445,1760418976501,-500.0,0.00019607,2]
[391206446,1760418976538,-500.0,0.00019607,2]
[391206447,1760418976575,-500.0,0.00019607,2]
[391206448,1760418976617,-636.93550371,0.00019607,2]
[391206449,1760418976654,-500.0,0.00019607,2]
[391206450,1760418976693,-500.0,0.00019607,2]
[391206451,1760418976734,-347.98370506,0.00019607,2]
[391206452,1760418976787,-500.0,0.00019607,2]
[391206453,1760418976821,-158.86160917,0.00019607,2]
[391206454,1760418976855,-500.0,0.00019607,2]
[391206455,1760418976893,-500.0,0.00019607,2]
[391206456,1760418976930,-500.0,0.00019607,2]
[391206457,1760418976969,-500.0,0.00019607,2]
[391206458,1760418977009,-500.0,0.00019607,2]
[391206459,1760418977046,-500.0,0.00019607,2]
[391206460,1760418977084,-500.0,0.00019607,2]
[391206461,1760418977121,-500.0,0.00019607,2]
[391206462,1760418977159,-182.28678166,0.00019607,2]
[391206463,1760418978225,-317.71321834,0.00019607,2]
[391206464,1760418978263,-500.0,0.00019607,2]
[391206465,1760418978306,-500.0,0.00019607,2]
[391206466,1760418978342,-500.0,0.00019607,2]
[391206467,1760418978377,-500.0,0.00019607,2]
[391206468,1760418978412,-190.57104713,0.00019607,2]
[391206469,1760418978448,-500.0,0.00019607,2]
[391206470,1760418978483,-500.0,0.00019607,2]
[391206471,1760418978518,-500.0,0.00019607,2]
[391206472,1760418978553,-500.0,0.00019607,2]
[391206473,1760418978589,-483.44146906,0.00019607,2]
[391206474,1760418978734,-16.55853094,0.00019607,2]
[391206475,1760418978771,-500.0,0.00019607,2]
[391206476,1760418978806,-500.0,0.00019607,2]
[391206477,1760418978845,-500.0,0.00019607,2]
[391206478,1760418978885,-500.0,0.00019607,2]
[391206479,1760418978923,-260.41251393,0.00019607,2]
[391206480,1760418978960,-500.0,0.00019607,2]
[391206481,1760418978997,-500.0,0.00019607,2]
[391206482,1760418979031,-500.0,0.00019607,2]
[391206483,1760418979064,-500.0,0.00019607,2]
[391206484,1760418979101,-500.0,0.00019607,2]
[391206485,1760418980096,-500.0,0.00019607,2]
[391206486,1760418980125,-500.0,0.00019607,2]
[391206487,1760418980158,-457.83030826,0.00019607,2]
[391206488,1760418980195,-500.0,0.00019607,2]
[391206489,1760418980225,-500.0,0.00019607,2]
[391206490,1760418980256,-500.0,0.00019607,2]
[391206491,1760418980285,-484.51690759,0.00019607,2]
[391206492,1760418980406,-500.0,0.00019607,2]
[391206493,1760418980437,-500.0,0.00019607,2]
[391206494,1760418980469,-500.0,0.00019607,2]
[391206495,1760418980607,-500.0,0.00019607,2]
[391206496,1760418980637,-502.34296403,0.00019607,2]
[391206497,1760418980668,-500.0,0.00019607,2]
[391206498,1760418980704,-500.0,0.00019607,2]